[Event "*** Titled Tuesday Blitz"]
[Site "Chess.com"]
[Date "2020.12.01"]
[Round "3"]
[White "Natalya_Buksa"]
[Black "Perecke"]
[Result "0-1"]
[WhiteElo "2574"]
[BlackElo "2392"]
[TimeControl "180+1"]
[EndTime "10:28:34 PST"]
[Termination "Perecke won by checkmate"]

1. d4 {[%clk 0:03:00.9]} 1... d5 {[%clk 0:02:59.3]} 2. Nc3 {[%clk 0:03:00.6]}
2... Nf6 {[%clk 0:02:58.2]} 3. Bf4 {[%clk 0:03:00.8]} 3... a6 {[%clk 0:02:55.5]}
4. e3 {[%clk 0:03:00.9]} 4... Bf5 {[%clk 0:02:52.8]} 5. Nf3 {[%clk 0:03:00.8]}
5... e6 {[%clk 0:02:51.8]} 6. Ne5 {[%clk 0:03:00.9]} 6... Nbd7 {[%clk
0:02:50.7]} 7. g4 {[%clk 0:03:01.1]} 7... Bg6 {[%clk 0:02:41.1]} 8. h4 {[%clk
0:03:00.8]} 8... h5 {[%clk 0:02:00.1]} 9. Nxg6 {[%clk 0:02:59.6]} 9... fxg6
{[%clk 0:02:01]} 10. Bd3 {[%clk 0:02:59.9]} 10... Kf7 {[%clk 0:01:59.3]} 11. g5
{[%clk 0:02:59.8]} 11... Ne8 {[%clk 0:01:56.5]} 12. Qf3 {[%clk 0:02:59.8]} 12...
Kg8 {[%clk 0:01:50.7]} 13. Bxg6 {[%clk 0:02:59.6]} 13... Bd6 {[%clk 0:01:42.4]}
14. O-O-O {[%clk 0:02:39]} 14... Bxf4 {[%clk 0:01:38.5]} 15. Qxf4 {[%clk
0:02:39.9]} 15... Nd6 {[%clk 0:01:38.8]} 16. e4 {[%clk 0:02:37.8]} 16... Nf8
{[%clk 0:01:36.9]} 17. Bxh5 {[%clk 0:02:30.4]} 17... Rxh5 {[%clk 0:01:29.3]} 18.
exd5 {[%clk 0:02:19.6]} 18... Qd7 {[%clk 0:00:58.8]} 19. Qf3 {[%clk 0:01:51.2]}
19... Qf7 {[%clk 0:00:51.3]} 20. Qg4 {[%clk 0:01:33.6]} 20... exd5 {[%clk
0:00:38.6]} 21. Rh3 {[%clk 0:01:32.3]} 21... c6 {[%clk 0:00:18.1]} 22. Rf3
{[%clk 0:01:28.2]} 22... Rxh4 {[%clk 0:00:18.5]} 23. Qg3 {[%clk 0:01:23.6]}
23... Qh5 {[%clk 0:00:12.6]} 24. Rxf8+ {[%clk 0:01:13.2]} 24... Rxf8 {[%clk
0:00:12.1]} 25. Qxd6 {[%clk 0:01:13.8]} 25... Rh1 {[%clk 0:00:10.6]} 26. Qe6+
{[%clk 0:01:11.7]} 26... Kh8 {[%clk 0:00:10.5]} 27. Qe3 {[%clk 0:00:59.2]} 27...
Rxd1+ {[%clk 0:00:09.5]} 28. Nxd1 {[%clk 0:00:58.9]} 28... Qf3 {[%clk
0:00:09.7]} 29. Qe7 {[%clk 0:00:49.1]} 29... Qf7 {[%clk 0:00:09.6]} 30. Qe1
{[%clk 0:00:44.4]} 30... Qf4+ {[%clk 0:00:08.2]} 31. Kb1 {[%clk 0:00:38.2]}
31... Qxg5 {[%clk 0:00:08]} 32. a3 {[%clk 0:00:38]} 32... Qf6 {[%clk 0:00:07.1]}
33. Qh1+ {[%clk 0:00:35.5]} 33... Kg8 {[%clk 0:00:08]} 34. Qh3 {[%clk
0:00:33.2]} 34... Re8 {[%clk 0:00:07.8]} 35. Ne3 {[%clk 0:00:20.2]} 35... Qxd4
{[%clk 0:00:07.1]} 36. Qh5 {[%clk 0:00:19.5]} 36... Qe4 {[%clk 0:00:06.8]} 37.
Ka2 {[%clk 0:00:16.8]} 37... Qe5 {[%clk 0:00:07.3]} 38. Qg6 {[%clk 0:00:16.1]}
38... d4 {[%clk 0:00:07.5]} 39. Ng4 {[%clk 0:00:16.3]} 39... Qe6+ {[%clk
0:00:07.9]} 40. Qxe6+ {[%clk 0:00:13.5]} 40... Rxe6 {[%clk 0:00:08.8]} 41. Kb3
{[%clk 0:00:14.1]} 41... Re2 {[%clk 0:00:09.7]} 42. f3 {[%clk 0:00:13.5]} 42...
b5 {[%clk 0:00:08]} 43. c3 {[%clk 0:00:13.2]} 43... d3 {[%clk 0:00:07.2]} 44. a4
{[%clk 0:00:12.9]} 44... c5 {[%clk 0:00:07.5]} 45. axb5 {[%clk 0:00:12.9]} 45...
axb5 {[%clk 0:00:08.4]} 46. c4 {[%clk 0:00:13.2]} 46... bxc4+ {[%clk 0:00:08.2]}
47. Kc3 {[%clk 0:00:13.5]} 47... Rc2# {[%clk 0:00:08.9]} 0-1

[Event "*** Titled Tuesday Blitz"]
[Site "Chess.com"]
[Date "2020.12.01"]
[Round "3"]
[White "nikitadovbnya2008"]
[Black "orestn"]
[Result "1-0"]
[WhiteElo "2179"]
[BlackElo "2324"]
[TimeControl "180+1"]
[EndTime "10:28:34 PST"]
[Termination "nikitadovbnya2008 won by checkmate"]

1. d4 {[%clk 0:03:00.9]} 1... d5 {[%clk 0:02:59.5]} 2. c4 {[%clk 0:03:01]} 2...
e6 {[%clk 0:02:59.9]} 3. Nc3 {[%clk 0:03:00.9]} 3... f5 {[%clk 0:02:59.6]} 4.
Nf3 {[%clk 0:02:59.9]} 4... Nf6 {[%clk 0:02:59.1]} 5. e3 {[%clk 0:02:59.9]} 5...
Be7 {[%clk 0:02:58.8]} 6. Bd3 {[%clk 0:02:59.6]} 6... O-O {[%clk 0:02:58.6]} 7.
O-O {[%clk 0:02:59]} 7... c6 {[%clk 0:02:55.6]} 8. b3 {[%clk 0:02:59.3]} 8...
Ne4 {[%clk 0:02:54]} 9. Bb2 {[%clk 0:02:58.9]} 9... Nd7 {[%clk 0:02:51.3]} 10.
Ne2 {[%clk 0:02:58.9]} 10... Bf6 {[%clk 0:02:47.4]} 11. Ne5 {[%clk 0:02:58]}
11... Re8 {[%clk 0:02:28.6]} 12. f3 {[%clk 0:02:55.2]} 12... Nd6 {[%clk
0:02:27.9]} 13. Rc1 {[%clk 0:02:36.8]} 13... g6 {[%clk 0:02:21.8]} 14. Kh1
{[%clk 0:02:30.1]} 14... Nf7 {[%clk 0:02:18]} 15. f4 {[%clk 0:02:23.4]} 15...
Nd6 {[%clk 0:02:15.3]} 16. g4 {[%clk 0:02:21.9]} 16... Ne4 {[%clk 0:02:09.1]}
17. cxd5 {[%clk 0:02:04.7]} 17... cxd5 {[%clk 0:01:54.1]} 18. g5 {[%clk
0:02:01.7]} 18... Bg7 {[%clk 0:01:50.4]} 19. Nc3 {[%clk 0:01:56.8]} 19... Nxe5
{[%clk 0:01:46]} 20. dxe5 {[%clk 0:01:55.1]} 20... Bd7 {[%clk 0:01:46.3]} 21.
Ne2 {[%clk 0:01:42.5]} 21... Qa5 {[%clk 0:01:37.8]} 22. Bxe4 {[%clk 0:01:32.2]}
22... fxe4 {[%clk 0:01:28.7]} 23. a4 {[%clk 0:01:28.6]} 23... Rec8 {[%clk
0:01:21.3]} 24. Bc3 {[%clk 0:01:26.8]} 24... Qb6 {[%clk 0:01:18.5]} 25. Bd4
{[%clk 0:01:23]} 25... Qb4 {[%clk 0:01:14]} 26. Nc3 {[%clk 0:01:18.3]} 26... Bc6
{[%clk 0:01:07.4]} 27. h4 {[%clk 0:01:16.8]} 27... a6 {[%clk 0:00:59.4]} 28. Qg4
{[%clk 0:01:16.7]} 28... Qe7 {[%clk 0:00:58.3]} 29. a5 {[%clk 0:01:03.9]} 29...
Bd7 {[%clk 0:00:50.6]} 30. h5 {[%clk 0:00:58.6]} 30... Kf7 {[%clk 0:00:46.2]}
31. Qg3 {[%clk 0:00:27.7]} 31... Bf8 {[%clk 0:00:43.4]} 32. f5 {[%clk
0:00:22.7]} 32... exf5 {[%clk 0:00:29.7]} 33. Nxd5 {[%clk 0:00:22]} 33... Qe6
{[%clk 0:00:22.9]} 34. Nc7 {[%clk 0:00:19.3]} 34... Rxc7 {[%clk 0:00:19.9]} 35.
Rxc7 {[%clk 0:00:20.2]} 35... Be7 {[%clk 0:00:16.9]} 36. Rfc1 {[%clk 0:00:18.3]}
36... Rb8 {[%clk 0:00:15.9]} 37. Bc5 {[%clk 0:00:14.7]} 37... Qxb3 {[%clk
0:00:11.7]} 38. Rxd7 {[%clk 0:00:12.7]} 38... Re8 {[%clk 0:00:07.5]} 39. Bxe7
{[%clk 0:00:12]} 39... Rxe7 {[%clk 0:00:07.5]} 40. Rxe7+ {[%clk 0:00:11.8]}
40... Kxe7 {[%clk 0:00:08.4]} 41. hxg6 {[%clk 0:00:11.5]} 41... hxg6 {[%clk
0:00:08.1]} 42. e6 {[%clk 0:00:11]} 42... Qa3 {[%clk 0:00:05.7]} 43. Qc7+ {[%clk
0:00:11]} 43... Kxe6 {[%clk 0:00:06.6]} 44. Qb6+ {[%clk 0:00:11]} 44... Kd5
{[%clk 0:00:06.2]} 45. Rd1+ {[%clk 0:00:10.6]} 45... Ke5 {[%clk 0:00:05.5]} 46.
Qf6# {[%clk 0:00:10]} 1-0

[Event "*** Titled Tuesday Blitz"]
[Site "Chess.com"]
[Date "2020.12.01"]
[Round "3"]
[White "Ginger_GM"]
[Black "BillieKimbah"]
[Result "1-0"]
[WhiteElo "2621"]
[BlackElo "2843"]
[TimeControl "180+1"]
[EndTime "10:28:35 PST"]
[Termination "Ginger_GM won on time"]

1. d4 {[%clk 0:03:00]} 1... d5 {[%clk 0:02:57.3]} 2. c4 {[%clk 0:02:59.1]} 2...
c6 {[%clk 0:02:55.9]} 3. Nc3 {[%clk 0:02:58.8]} 3... e6 {[%clk 0:02:54.4]} 4. e4
{[%clk 0:02:57.2]} 4... Bb4 {[%clk 0:02:51.8]} 5. Bd3 {[%clk 0:02:55.1]} 5...
dxe4 {[%clk 0:02:49.3]} 6. Bxe4 {[%clk 0:02:54.5]} 6... Nf6 {[%clk 0:02:49.9]}
7. Bc2 {[%clk 0:02:53.8]} 7... c5 {[%clk 0:02:43.5]} 8. a3 {[%clk 0:02:53.6]}
8... Ba5 {[%clk 0:02:36.2]} 9. Nf3 {[%clk 0:02:41.7]} 9... Nc6 {[%clk
0:02:34.4]} 10. dxc5 {[%clk 0:02:36.8]} 10... Bxc3+ {[%clk 0:02:32.9]} 11. bxc3
{[%clk 0:02:35.9]} 11... Qa5 {[%clk 0:02:33.6]} 12. O-O {[%clk 0:02:33]} 12...
Qxc5 {[%clk 0:02:33.2]} 13. Be3 {[%clk 0:02:28.9]} 13... Qa5 {[%clk 0:02:17.8]}
14. Qd6 {[%clk 0:02:25.2]} 14... Qd8 {[%clk 0:02:17.8]} 15. Bc5 {[%clk
0:02:22.1]} 15... Qxd6 {[%clk 0:02:16.8]} 16. Bxd6 {[%clk 0:02:22.2]} 16... Bd7
{[%clk 0:02:14.5]} 17. c5 {[%clk 0:02:17.8]} 17... O-O-O {[%clk 0:02:01.2]} 18.
Rab1 {[%clk 0:02:16.7]} 18... Ne8 {[%clk 0:02:00.3]} 19. Bg3 {[%clk 0:02:15.1]}
19... f6 {[%clk 0:01:59.5]} 20. Rb2 {[%clk 0:02:10.1]} 20... Na5 {[%clk
0:01:57.6]} 21. Nd4 {[%clk 0:01:59.3]} 21... e5 {[%clk 0:01:56.7]} 22. Nb5
{[%clk 0:01:58.8]} 22... a6 {[%clk 0:01:55.4]} 23. Nd6+ {[%clk 0:01:50]} 23...
Nxd6 {[%clk 0:01:55.1]} 24. cxd6 {[%clk 0:01:50.9]} 24... Nc4 {[%clk 0:01:55.7]}
25. Rb4 {[%clk 0:01:50.2]} 25... Nxd6 {[%clk 0:01:55]} 26. f4 {[%clk 0:01:50.3]}
26... exf4 {[%clk 0:01:40]} 27. Bxf4 {[%clk 0:01:49.8]} 27... Be6 {[%clk
0:00:49.6]} 28. Rfb1 {[%clk 0:01:42.1]} 28... b5 {[%clk 0:00:43.9]} 29. a4
{[%clk 0:01:41.6]} 29... Nc4 {[%clk 0:00:37.9]} 30. axb5 {[%clk 0:01:39]} 30...
a5 {[%clk 0:00:37.1]} 31. Ra4 {[%clk 0:01:36.6]} 31... g5 {[%clk 0:00:37]} 32.
Bg3 {[%clk 0:01:32.9]} 32... Rd2 {[%clk 0:00:36.6]} 33. Bb3 {[%clk 0:01:30.3]}
33... Bd5 {[%clk 0:00:17.5]} 34. Bxc4 {[%clk 0:01:27.8]} 34... Bxg2 {[%clk
0:00:14.6]} 35. Bf1 {[%clk 0:01:22.1]} 35... Bb7 {[%clk 0:00:13.2]} 36. c4
{[%clk 0:01:21.9]} 36... f5 {[%clk 0:00:13.4]} 37. c5 {[%clk 0:01:16.8]} 37...
Be4 {[%clk 0:00:12.6]} 38. Rc1 {[%clk 0:01:14.9]} 38... Rhd8 {[%clk 0:00:12.4]}
39. c6 {[%clk 0:01:13.7]} 39... Rd1 {[%clk 0:00:12.7]} 40. Rxa5 {[%clk
0:01:10.4]} 40... f4 {[%clk 0:00:09.7]} 41. b6 {[%clk 0:00:57.3]} 41... Bxc6
{[%clk 0:00:06.2]} 42. Rxc6+ {[%clk 0:00:56.6]} 42... Kb7 {[%clk 0:00:06.6]} 43.
Rf6 {[%clk 0:00:51.2]} 43... fxg3 {[%clk 0:00:05.6]} 44. Ra7+ {[%clk 0:00:50.3]}
44... Kb8 {[%clk 0:00:05.2]} 45. hxg3 {[%clk 0:00:50.9]} 45... h5 {[%clk
0:00:05.3]} 46. Rff7 {[%clk 0:00:47.3]} 46... h4 {[%clk 0:00:05.4]} 47. gxh4
{[%clk 0:00:43.5]} 47... gxh4 {[%clk 0:00:06.3]} 48. Kf2 {[%clk 0:00:43.5]}
48... R8d2+ {[%clk 0:00:02.6]} 49. Be2 {[%clk 0:00:43.5]} 49... h3 {[%clk
0:00:02.4]} 50. Rf8+ {[%clk 0:00:43.5]} 50... Rd8 {[%clk 0:00:02.6]} 51. Rxd8+
{[%clk 0:00:41.7]} 51... Rxd8 {[%clk 0:00:03.5]} 52. Bf3 {[%clk 0:00:42]} 1-0

[Event "*** Titled Tuesday Blitz"]
[Site "Chess.com"]
[Date "2020.12.01"]
[Round "3"]
[White "Abdimalik_Abdisalimov"]
[Black "pedromartinez91"]
[Result "1/2-1/2"]
[WhiteElo "2726"]
[BlackElo "2441"]
[TimeControl "180+1"]
[EndTime "10:28:35 PST"]
[Termination "Game drawn by repetition"]

1. d4 {[%clk 0:03:00.9]} 1... Nf6 {[%clk 0:02:57.1]} 2. c4 {[%clk 0:03:00.5]}
2... g6 {[%clk 0:02:57]} 3. f3 {[%clk 0:02:56.3]} 3... e5 {[%clk 0:02:49.8]} 4.
dxe5 {[%clk 0:02:50.8]} 4... Nh5 {[%clk 0:02:48.7]} 5. Nh3 {[%clk 0:02:45.7]}
5... Nc6 {[%clk 0:02:45.7]} 6. Nf2 {[%clk 0:02:34.8]} 6... Nxe5 {[%clk 0:02:22]}
7. Nc3 {[%clk 0:02:29.5]} 7... Bg7 {[%clk 0:02:12.8]} 8. e4 {[%clk 0:02:24.4]}
8... O-O {[%clk 0:02:11.2]} 9. Be2 {[%clk 0:02:16.9]} 9... d6 {[%clk 0:02:04.6]}
10. f4 {[%clk 0:02:09.8]} 10... Nc6 {[%clk 0:02:04.1]} 11. Bxh5 {[%clk 0:02:04]}
11... gxh5 {[%clk 0:02:05]} 12. f5 {[%clk 0:01:58]} 12... Qh4 {[%clk 0:01:53]}
13. Nd5 {[%clk 0:01:44.6]} 13... Bd4 {[%clk 0:01:37.1]} 14. g3 {[%clk
0:01:32.6]} 14... Qd8 {[%clk 0:01:24.9]} 15. Bh6 {[%clk 0:01:27.2]} 15... Re8
{[%clk 0:01:00.3]} 16. Qxh5 {[%clk 0:01:22.8]} 16... Ne7 {[%clk 0:00:29.9]} 17.
O-O-O {[%clk 0:01:12.9]} 17... Be5 {[%clk 0:00:20.5]} 18. Bg5 {[%clk 0:01:08.2]}
18... Qd7 {[%clk 0:00:12.7]} 19. Nxe7+ {[%clk 0:01:02.9]} 19... Rxe7 {[%clk
0:00:13.6]} 20. Bxe7 {[%clk 0:00:59.1]} 20... Qxe7 {[%clk 0:00:14.5]} 21. Rhe1
{[%clk 0:00:47]} 21... Bd7 {[%clk 0:00:13.1]} 22. Ng4 {[%clk 0:00:45.5]} 22...
Ba4 {[%clk 0:00:13.2]} 23. Rd5 {[%clk 0:00:35.1]} 23... f6 {[%clk 0:00:10.5]}
24. Nxe5 {[%clk 0:00:28.1]} 24... dxe5 {[%clk 0:00:11.4]} 25. Rd2 {[%clk
0:00:22.3]} 25... Rf8 {[%clk 0:00:09.4]} 26. g4 {[%clk 0:00:18.4]} 26... Qc5
{[%clk 0:00:09.2]} 27. b3 {[%clk 0:00:17]} 27... b5 {[%clk 0:00:09.6]} 28. bxa4
{[%clk 0:00:13.2]} 28... bxc4 {[%clk 0:00:07.2]} 29. g5 {[%clk 0:00:11.7]} 29...
c3 {[%clk 0:00:07.4]} 30. Rc2 {[%clk 0:00:11]} 30... Qa3+ {[%clk 0:00:07.7]} 31.
Kb1 {[%clk 0:00:08.7]} 31... Rb8+ {[%clk 0:00:07.5]} 32. Ka1 {[%clk 0:00:05.7]}
32... Qxa4 {[%clk 0:00:07.9]} 33. Rec1 {[%clk 0:00:03.1]} 33... Rb2 {[%clk
0:00:05]} 34. Rxb2 {[%clk 0:00:02.3]} 34... cxb2+ {[%clk 0:00:05.9]} 35. Kxb2
{[%clk 0:00:02.7]} 35... Qb4+ {[%clk 0:00:06.8]} 36. Ka1 {[%clk 0:00:02.4]}
36... Qd4+ {[%clk 0:00:07.2]} 37. Kb1 {[%clk 0:00:02.8]} 37... Qb4+ {[%clk
0:00:07.7]} 38. Ka1 {[%clk 0:00:02.8]} 38... Qd4+ {[%clk 0:00:07.9]} 39. Kb1
{[%clk 0:00:03.4]} 39... Qb4+ {[%clk 0:00:08.1]} 40. Ka1 {[%clk 0:00:04.1]}
1/2-1/2

[Event "*** Titled Tuesday Blitz"]
[Site "Chess.com"]
[Date "2020.12.01"]
[Round "3"]
[White "coco_crc"]
[Black "Leo_C"]
[Result "0-1"]
[WhiteElo "2182"]
[BlackElo "2373"]
[TimeControl "180+1"]
[EndTime "10:28:35 PST"]
[Termination "Leo_C won by resignation"]

1. e4 {[%clk 0:02:59.2]} 1... c6 {[%clk 0:02:59.7]} 2. d4 {[%clk 0:02:57.4]}
2... d5 {[%clk 0:02:59.1]} 3. exd5 {[%clk 0:02:57.4]} 3... cxd5 {[%clk
0:02:58.9]} 4. c4 {[%clk 0:02:58.3]} 4... Nf6 {[%clk 0:02:57.9]} 5. Nc3 {[%clk
0:02:58.3]} 5... Nc6 {[%clk 0:02:57.9]} 6. Nf3 {[%clk 0:02:58]} 6... a6 {[%clk
0:02:57.5]} 7. cxd5 {[%clk 0:02:54.1]} 7... Nxd5 {[%clk 0:02:56.9]} 8. Bc4
{[%clk 0:02:54.3]} 8... Be6 {[%clk 0:02:56.2]} 9. Qb3 {[%clk 0:02:42.9]} 9...
Na5 {[%clk 0:02:53.6]} 10. Qa4+ {[%clk 0:02:26.2]} 10... Bd7 {[%clk 0:02:43.1]}
11. Qxa5 {[%clk 0:02:20.7]} 11... Qxa5 {[%clk 0:02:38.1]} 12. Bxd5 {[%clk
0:02:20.9]} 12... e6 {[%clk 0:02:32.9]} 13. Bb3 {[%clk 0:02:20.4]} 13... Bc6
{[%clk 0:02:25.3]} 14. O-O {[%clk 0:01:57.3]} 14... Bxf3 {[%clk 0:02:22.8]} 15.
gxf3 {[%clk 0:01:58.2]} 15... Be7 {[%clk 0:02:16.1]} 16. Be3 {[%clk 0:01:51.4]}
16... Qh5 {[%clk 0:02:14.6]} 17. Kg2 {[%clk 0:01:49.3]} 17... Bd6 {[%clk
0:02:12.6]} 18. h3 {[%clk 0:01:47.9]} 18... O-O {[%clk 0:01:53.9]} 19. Ne4
{[%clk 0:01:47.9]} 19... Be7 {[%clk 0:01:49.6]} 20. Rac1 {[%clk 0:01:44.5]}
20... Rac8 {[%clk 0:01:49.2]} 21. Nc5 {[%clk 0:01:44.5]} 21... Bxc5 {[%clk
0:01:48.3]} 22. dxc5 {[%clk 0:01:45.4]} 22... Qe5 {[%clk 0:01:42.6]} 23. Rc2
{[%clk 0:01:41.6]} 23... Rfd8 {[%clk 0:01:42.1]} 24. Rfc1 {[%clk 0:01:37.8]}
24... h6 {[%clk 0:01:41.7]} 25. a3 {[%clk 0:01:33.6]} 25... Rd3 {[%clk
0:01:38.3]} 26. Bc4 {[%clk 0:01:30.4]} 26... Rxe3 {[%clk 0:01:37.2]} 27. fxe3
{[%clk 0:01:31.3]} 27... Qxe3 {[%clk 0:01:37.1]} 28. Be2 {[%clk 0:01:17.5]}
28... Rd8 {[%clk 0:01:33.6]} 29. Bxa6 {[%clk 0:00:59.2]} 29... bxa6 {[%clk
0:01:23.7]} 30. c6 {[%clk 0:00:59.3]} 30... Qg5+ {[%clk 0:01:02.6]} 31. Kh1
{[%clk 0:00:52.7]} 31... Qg3 {[%clk 0:00:36.9]} 32. c7 {[%clk 0:00:48.6]} 32...
Qxf3+ {[%clk 0:00:34.9]} 33. Kh2 {[%clk 0:00:41.3]} 33... Qf4+ {[%clk
0:00:31.6]} 34. Kh1 {[%clk 0:00:35.1]} 34... Rc8 {[%clk 0:00:19.7]} 35. b4
{[%clk 0:00:19]} 35... e5 {[%clk 0:00:18.8]} 36. Rc4 {[%clk 0:00:16.7]} 36...
Qf3+ {[%clk 0:00:18.4]} 37. Kh2 {[%clk 0:00:17]} 37... e4 {[%clk 0:00:18.6]} 38.
a4 {[%clk 0:00:15.1]} 38... e3 {[%clk 0:00:18.1]} 39. R4c2 {[%clk 0:00:13.2]}
39... e2 {[%clk 0:00:16.3]} 40. Kg1 {[%clk 0:00:10.3]} 40... Qg3+ {[%clk
0:00:15.1]} 41. Kh1 {[%clk 0:00:10]} 41... Qf2 {[%clk 0:00:14.6]} 0-1

[Event "*** Titled Tuesday Blitz"]
[Site "Chess.com"]
[Date "2020.12.01"]
[Round "3"]
[White "Nachsueb"]
[Black "forbiddendesire"]
[Result "1-0"]
[WhiteElo "2190"]
[BlackElo "2321"]
[TimeControl "180+1"]
[EndTime "10:28:36 PST"]
[Termination "Nachsueb won on time"]

1. c4 {[%clk 0:03:00.9]} 1... g6 {[%clk 0:02:59.8]} 2. Nc3 {[%clk 0:03:00.9]}
2... Bg7 {[%clk 0:03:00.3]} 3. e4 {[%clk 0:02:59.4]} 3... d6 {[%clk 0:03:00.8]}
4. d4 {[%clk 0:02:58]} 4... Nc6 {[%clk 0:03:01.2]} 5. Be3 {[%clk 0:02:55.4]}
5... e5 {[%clk 0:03:01.7]} 6. d5 {[%clk 0:02:55.2]} 6... Nd4 {[%clk 0:02:55.5]}
7. Nge2 {[%clk 0:02:54.5]} 7... Bg4 {[%clk 0:02:55.2]} 8. f3 {[%clk 0:02:37.8]}
8... Nxe2 {[%clk 0:02:48.5]} 9. Bxe2 {[%clk 0:02:35.7]} 9... Bd7 {[%clk
0:02:47]} 10. O-O {[%clk 0:02:32.1]} 10... f5 {[%clk 0:02:47.2]} 11. exf5 {[%clk
0:02:26.3]} 11... gxf5 {[%clk 0:02:44.3]} 12. f4 {[%clk 0:02:26.6]} 12... e4
{[%clk 0:02:42.7]} 13. Bh5+ {[%clk 0:02:26]} 13... Kf8 {[%clk 0:02:42.5]} 14. c5
{[%clk 0:02:17.5]} 14... Nf6 {[%clk 0:02:40.4]} 15. Be2 {[%clk 0:02:16.8]} 15...
h5 {[%clk 0:02:33.1]} 16. Qb3 {[%clk 0:02:01.4]} 16... b6 {[%clk 0:02:18.8]} 17.
cxd6 {[%clk 0:01:56.9]} 17... cxd6 {[%clk 0:02:19.1]} 18. Nb5 {[%clk 0:01:52.2]}
18... Ng4 {[%clk 0:02:14.1]} 19. Bxg4 {[%clk 0:01:20.1]} 19... hxg4 {[%clk
0:02:07.8]} 20. g3 {[%clk 0:01:20.5]} 20... Qf6 {[%clk 0:01:37.1]} 21. Bd4
{[%clk 0:01:15]} 21... Qxd4+ {[%clk 0:01:04.4]} 22. Nxd4 {[%clk 0:01:14.4]}
22... Bxd4+ {[%clk 0:01:04.3]} 23. Kg2 {[%clk 0:01:05.2]} 23... Ke7 {[%clk
0:01:04.3]} 24. Rac1 {[%clk 0:00:56.6]} 24... Rac8 {[%clk 0:01:00.4]} 25. Rc4
{[%clk 0:00:42.5]} 25... Bc5 {[%clk 0:00:14.8]} 26. Rfc1 {[%clk 0:00:36]} 26...
Rh3 {[%clk 0:00:06.9]} 27. Qc3 {[%clk 0:00:35.5]} 27... Rch8 {[%clk 0:00:04.2]}
28. Qg7+ {[%clk 0:00:35.2]} 28... Kd8 {[%clk 0:00:04.2]} 29. Rh1 {[%clk
0:00:33.5]} 29... e3 {[%clk 0:00:04.1]} 30. b4 {[%clk 0:00:31.9]} 30... e2
{[%clk 0:00:03.9]} 31. Qf6+ {[%clk 0:00:23]} 31... Kc7 {[%clk 0:00:03.3]} 32.
Qxh8 {[%clk 0:00:15.2]} 32... Rxh8 {[%clk 0:00:02.5]} 33. bxc5 {[%clk
0:00:15.4]} 33... bxc5 {[%clk 0:00:03.3]} 34. Kf2 {[%clk 0:00:13.9]} 34... Bb5
{[%clk 0:00:03.1]} 35. Rc2 {[%clk 0:00:13.5]} 35... Kb6 {[%clk 0:00:02.8]} 36.
Rb2 {[%clk 0:00:12.8]} 36... Ka6 {[%clk 0:00:01.2]} 37. a4 {[%clk 0:00:11.5]}
37... Bxa4 {[%clk 0:00:01.4]} 38. Rxe2 {[%clk 0:00:11.5]} 1-0

[Event "*** Titled Tuesday Blitz"]
[Site "Chess.com"]
[Date "2020.12.01"]
[Round "3"]
[White "Ermito2020"]
[Black "vugarrasulov"]
[Result "1-0"]
[WhiteElo "2608"]
[BlackElo "2883"]
[TimeControl "180+1"]
[EndTime "10:28:38 PST"]
[Termination "Ermito2020 won by resignation"]

1. e4 {[%clk 0:03:00.8]} 1... c5 {[%clk 0:02:59.3]} 2. Nf3 {[%clk 0:02:59.6]}
2... d6 {[%clk 0:02:59.5]} 3. d4 {[%clk 0:02:59.5]} 3... cxd4 {[%clk 0:02:59.8]}
4. Nxd4 {[%clk 0:02:59.9]} 4... Nf6 {[%clk 0:03:00.3]} 5. Nc3 {[%clk 0:02:59.8]}
5... a6 {[%clk 0:03:00.8]} 6. Nb3 {[%clk 0:03:00]} 6... g6 {[%clk 0:02:58]} 7.
Be2 {[%clk 0:02:58.9]} 7... Bg7 {[%clk 0:02:58.1]} 8. Be3 {[%clk 0:02:58.3]}
8... O-O {[%clk 0:02:58.2]} 9. g4 {[%clk 0:02:58.1]} 9... b5 {[%clk 0:02:47.7]}
10. e5 {[%clk 0:02:50.1]} 10... dxe5 {[%clk 0:02:46.1]} 11. Qxd8 {[%clk
0:02:39.3]} 11... Rxd8 {[%clk 0:02:47]} 12. Bf3 {[%clk 0:02:38.2]} 12... b4
{[%clk 0:02:42.7]} 13. g5 {[%clk 0:02:22.2]} 13... Ng4 {[%clk 0:02:38.4]} 14.
Bxa8 {[%clk 0:02:06.8]} 14... Nxe3 {[%clk 0:02:37.1]} 15. fxe3 {[%clk
0:02:06.4]} 15... bxc3 {[%clk 0:02:37.7]} 16. bxc3 {[%clk 0:02:05.2]} 16... h6
{[%clk 0:02:27.3]} 17. gxh6 {[%clk 0:01:57.3]} 17... Bxh6 {[%clk 0:02:28.2]} 18.
Kf2 {[%clk 0:01:57.6]} 18... Nd7 {[%clk 0:02:14.6]} 19. Rad1 {[%clk 0:01:55.1]}
19... Rf8 {[%clk 0:02:15]} 20. Bf3 {[%clk 0:01:50.5]} 20... Nf6 {[%clk
0:02:09.4]} 21. c4 {[%clk 0:01:47.4]} 21... Bf5 {[%clk 0:02:03.4]} 22. Rd2
{[%clk 0:01:42.6]} 22... Rc8 {[%clk 0:01:56.5]} 23. c5 {[%clk 0:01:40.9]} 23...
a5 {[%clk 0:01:53.3]} 24. Rhd1 {[%clk 0:01:38.1]} 24... Kg7 {[%clk 0:01:52.6]}
25. Bb7 {[%clk 0:01:31.3]} 25... Rc7 {[%clk 0:01:48]} 26. c6 {[%clk 0:01:31]}
26... Ne4+ {[%clk 0:01:47.4]} 27. Kg2 {[%clk 0:01:29.7]} 27... Nxd2 {[%clk
0:01:46.9]} 28. Rxd2 {[%clk 0:01:29.8]} 28... Bxe3 {[%clk 0:01:40.6]} 29. Re2
{[%clk 0:01:24.4]} 29... Bb6 {[%clk 0:01:33.9]} 30. Rxe5 {[%clk 0:01:18.2]}
30... a4 {[%clk 0:01:33.5]} 31. Nc5 {[%clk 0:01:16.3]} 31... Kf6 {[%clk
0:01:22.5]} 32. Rd5 {[%clk 0:01:11.6]} 32... Bxc2 {[%clk 0:01:00.9]} 33. Nd7+
{[%clk 0:01:03.8]} 33... Ke6 {[%clk 0:01:00.8]} 34. Re5+ {[%clk 0:00:51]} 34...
Kd6 {[%clk 0:01:00.9]} 35. Re2 {[%clk 0:00:50.6]} 35... Rxc6 {[%clk 0:00:26]}
36. Bxc6 {[%clk 0:00:46.4]} 36... Bf5 {[%clk 0:00:25.2]} 37. Nxb6 {[%clk
0:00:43.5]} 37... Kxc6 {[%clk 0:00:25.3]} 38. Nxa4 {[%clk 0:00:42.9]} 38... Kd6
{[%clk 0:00:25.4]} 39. Nc3 {[%clk 0:00:40.9]} 39... e5 {[%clk 0:00:25.6]} 40. a4
{[%clk 0:00:40.5]} 40... Bc8 {[%clk 0:00:25.3]} 41. Nb5+ {[%clk 0:00:38.8]}
41... Ke6 {[%clk 0:00:20.6]} 42. a5 {[%clk 0:00:37.8]} 42... Bb7+ {[%clk
0:00:18.6]} 43. Kg3 {[%clk 0:00:36.7]} 43... f5 {[%clk 0:00:19.5]} 44. a6 {[%clk
0:00:35.8]} 44... f4+ {[%clk 0:00:20]} 45. Kf2 {[%clk 0:00:35.3]} 45... Bxa6
{[%clk 0:00:13.6]} 46. Nc7+ {[%clk 0:00:34.8]} 46... Kf5 {[%clk 0:00:14.5]} 47.
Nxa6 {[%clk 0:00:35.5]} 47... e4 {[%clk 0:00:15.4]} 48. Nc5 {[%clk 0:00:30.9]}
48... e3+ {[%clk 0:00:15.9]} 49. Kf3 {[%clk 0:00:30]} 49... g5 {[%clk
0:00:16.4]} 50. h3 {[%clk 0:00:29]} 1-0